bitfinex-derivatives/quotes_BTCF0:USTF0_20250417
["timestamp","ask_amount","ask_price","bid_price","bid_amount"]
[1744880584782,0.646428,84480.0,84479.0,0.11868694]
[1744880586690,0.646428,84480.0,84479.0,0.10979983]
[1744880591297,0.570428,84480.0,84479.0,0.10979983]
[1744880591497,0.646428,84480.0,84479.0,0.10979983]
[1744880591797,0.7056426,84480.0,84477.0,0.0592161]
[1744880592099,0.7648572,84480.0,84479.0,0.1184294]
[1744880592299,1.1256572,84480.0,84479.0,0.1184294]
[1744880592601,0.0592147,84479.0,84475.0,0.138434]
[1744880592800,0.0592214,84470.0,84458.0,0.00019683]
[1744880593101,0.2369234,84459.0,84458.0,0.1776811]
[1744880593290,0.6669234,84459.0,84458.0,0.1776811]
[1744880594097,0.5484604,84459.0,84458.0,0.1776811]
[1744880594299,0.5484604,84459.0,84458.0,0.1786811]
[1744880594989,0.5484604,84459.0,84458.0,0.1796811]
[1744880596499,0.5484604,84459.0,84458.0,0.1786811]
[1744880597802,0.5484604,84459.0,84458.0,0.16979304]
[1744880600400,0.4892302,84459.0,84458.0,0.16979304]
[1744880603904,0.4892302,84459.0,84458.0,0.17079304]
[1744880605693,0.7908,84459.0,84458.0,0.17079304]
[1744880606904,0.9092456,84459.0,84458.0,0.17079304]
[1744880607105,0.7908,84459.0,84458.0,0.16879304]
[1744880607298,0.7908,84459.0,84458.0,0.17179304]
[1744880608207,0.7908,84459.0,84458.0,0.16290498]
[1744880609302,0.7908,84459.0,84458.0,0.16390498]
[1744880610406,0.7908,84459.0,84458.0,0.16290498]
[1744880610407,0.9092456,84459.0,84458.0,0.16290498]
[1744880611003,0.9092456,84459.0,84456.0,0.1184492]
[1744880611004,0.1184498,84457.0,84456.0,0.1184492]
[1744880611203,0.52741843,84457.0,84456.0,0.1184492]
[1744880611400,0.58851843,84457.0,84456.0,0.1184492]
[1744880611600,0.58851843,84457.0,84456.0,0.1185292]
[1744880612192,0.47006863,84457.0,84449.0,0.0592297]
[1744880612402,0.4792582,84450.0,84449.0,0.1491596]
[1744880612602,0.8892582,84450.0,84449.0,0.1491596]
[1744880613311,0.9503582,84450.0,84449.0,0.1491596]
[1744880614308,0.9503582,84450.0,84449.0,0.16075101]
[1744880614606,0.8014,84450.0,84449.0,0.16075101]
[1744880614798,0.8014,84450.0,84449.0,0.22435101]
[1744880615200,0.8014,84450.0,84449.0,0.22335101]
[1744880615400,0.8014,84450.0,84449.0,0.22435101]
[1744880615809,0.8014,84450.0,84449.0,0.22335101]
[1744880615999,0.8014,84450.0,84449.0,0.22535101]
[1744880617020,0.8014,84450.0,84449.0,0.22635101]
[1744880618110,0.8014,84450.0,84449.0,0.22735101]
[1744880618816,0.7708,84450.0,84449.0,0.22735101]
[1744880619611,0.8892582,84450.0,84449.0,0.22735101]
[1744880620209,0.7708,84450.0,84449.0,0.22635101]
[1744880620409,0.7708,84450.0,84449.0,0.22735101]
[1744880620610,0.8892582,84450.0,84449.0,0.22735101]
[1744880620809,0.9201582,84450.0,84449.0,0.22735101]
[1744880621012,0.9201582,84450.0,84449.0,0.22635101]
[1744880621215,0.9201582,84450.0,84449.0,0.22735101]
[1744880622818,0.9201582,84450.0,84449.0,0.21846202]
[1744880623916,0.9201582,84450.0,84449.0,0.18726202]
[1744880624507,0.9201582,84450.0,84449.0,0.004]
[1744880625222,0.9201582,84450.0,84449.0,0.1225396]
[1744880626321,0.9201582,84450.0,84449.0,0.1195396]
[1744880627817,0.1184624,84447.0,84446.0,0.02]
[1744880628120,0.1777075,84442.0,84441.0,0.1184703]
[1744880628321,0.9685075,84442.0,84441.0,0.1184703]
[1744880628513,0.1184722,84440.0,84439.0,0.1823095]
[1744880628717,0.5884722,84440.0,84439.0,0.1823095]
[1744880628915,0.5884722,84440.0,84439.0,0.0046]
[1744880629117,0.118475,84438.0,84437.0,0.12268108]
[1744880629317,0.929275,84438.0,84437.0,0.00420608]
[1744880629519,0.929275,84438.0,84437.0,0.12268248]
[1744880629719,0.962275,84438.0,84437.0,0.12276248]
[1744880630123,0.962275,84438.0,84433.0,0.06433357]
[1744880630124,0.1184807,84434.0,84433.0,0.00509277]
[1744880630426,0.5884807,84434.0,84433.0,0.00509277]
[1744880630811,0.5884807,84434.0,84433.0,0.12365487]
[1744880631015,0.5884807,84434.0,84426.0,0.417708]
[1744880631016,0.1184989,84421.0,84420.0,0.00530586]
[1744880631222,1.2700989,84421.0,84420.0,0.00530586]
[1744880631425,1.2700989,84421.0,84420.0,0.12360933]
[1744880631614,1.2700989,84421.0,84420.0,0.12368933]
[1744880631814,1.3351989,84421.0,84420.0,0.12360933]
[1744880632028,1.3351989,84421.0,84420.0,0.12368933]
[1744880632224,1.2167,84421.0,84420.0,0.12368933]
[1744880632535,1.3361989,84421.0,84420.0,0.01318903]
[1744880632737,1.3361989,84421.0,84420.0,0.0042967]
[1744880633137,1.3361989,84421.0,84420.0,0.0043767]
[1744880633628,1.3361989,84421.0,84420.0,0.126877]
[1744880634028,1.3361989,84421.0,84420.0,0.126797]
[1744880634235,0.1185003,84420.0,84419.0,1e-08]
[1744880634537,0.5385003,84420.0,84419.0,1e-08]
[1744880634738,0.1777581,84418.0,84417.0,0.1185045]
[1744880634936,0.4892522,84418.0,84417.0,0.1185045]
[1744880635135,0.4892522,84418.0,84417.0,0.1185845]
[1744880635136,0.5216522,84418.0,84417.0,0.1185845]
[1744880635436,0.4926,84418.0,84417.0,0.1185845]
[1744880636037,0.4926,84418.0,84417.0,0.1840845]
[1744880636238,0.4936,84418.0,84417.0,0.1910845]
[1744880637044,0.4634,84418.0,84417.0,0.1910845]
[1744880637343,0.431,84418.0,84417.0,0.1910845]
[1744880637738,0.431,84418.0,84417.0,0.2010845]
[1744880638642,0.431,84418.0,84417.0,0.1910845]
[1744880639942,0.431,84418.0,84417.0,0.2010845]
[1744880640944,0.431,84418.0,84417.0,0.1910845]
[1744880641139,0.7918,84418.0,84417.0,0.1910845]
[1744880641947,0.8235,84418.0,84417.0,0.1910845]
[1744880646244,0.8235,84418.0,84417.0,0.2010845]
[1744880647448,0.8235,84418.0,84417.0,0.1910845]
[1744880647750,0.8235,84418.0,84417.0,0.2010845]
[1744880648048,0.8235,84418.0,84417.0,0.1910845]
[1744880648935,0.4627,84418.0,84417.0,0.1910845]
[1744880649539,0.4627,84418.0,84417.0,0.2010845]
[1744880652555,0.431,84418.0,84417.0,0.2010845]
[1744880652959,0.00017764,84429.0,84428.0,0.1184891]
[1744880653254,0.07017764,84429.0,84428.0,0.1384891]
[1744880653854,0.07017764,84429.0,84428.0,0.2013891]
[1744880655352,0.07017764,84429.0,84428.0,0.2033891]
[1744880655555,0.33017764,84429.0,84428.0,0.1724891]
[1744880655758,0.33017764,84429.0,84428.0,0.1524891]
[1744880656254,0.33017764,84429.0,84428.0,0.1544891]
[1744880656454,0.33117764,84429.0,84428.0,0.1564891]
[1744880657660,0.33117764,84429.0,84428.0,0.1554891]
[1744880658149,0.33017764,84429.0,84428.0,0.1534891]
[1744880664069,0.33017764,84429.0,84428.0,0.1514891]
[1744880664251,0.33017764,84429.0,84428.0,0.1224891]
[1744880664456,0.33017764,84429.0,84428.0,0.1225691]
[1744880665565,0.33017764,84429.0,84428.0,0.1215691]
[1744880665756,0.33017764,84429.0,84428.0,0.1185691]
[1744880665958,0.44866534,84429.0,84428.0,0.1205691]
[1744880666167,0.33017764,84429.0,84428.0,0.1205691]
[1744880666363,0.44866534,84429.0,84428.0,0.1205691]
[1744880666552,0.51216534,84429.0,84428.0,0.1205691]
[1744880667566,0.87296534,84429.0,84428.0,0.1205691]
[1744880668462,0.87296534,84429.0,84428.0,0.1204891]
[1744880669265,0.87296534,84429.0,84428.0,0.1205691]
[1744880669460,0.87296534,84429.0,84428.0,0.1204891]
[1744880669660,0.87296534,84429.0,84428.0,0.1205691]
[1744880674363,0.87296534,84429.0,84428.0,0.00208]
[1744880674564,0.94940534,84429.0,84428.0,0.00208]
[1744880674761,0.1184919,84426.0,84425.0,0.02]
[1744880674963,0.1184961,84423.0,84422.0,0.0792483]
[1744880675265,0.5484961,84423.0,84422.0,0.0592483]
[1744880675658,0.5484961,84423.0,84422.0,0.0593283]
[1744880676075,0.5484961,84423.0,84422.0,8e-05]
[1744880676768,0.7449961,84423.0,84422.0,8e-05]
[1744880676974,0.5484961,84423.0,84422.0,0.00108]
[1744880677174,0.5484961,84423.0,84422.0,0.00408]
[1744880677175,0.5494961,84423.0,84422.0,0.00408]
[1744880677974,0.5494961,84423.0,84422.0,0.004]
[1744880678275,0.5494961,84423.0,84422.0,0.00408]
[1744880678475,0.5494961,84423.0,84422.0,0.004]
[1744880678672,0.5494961,84423.0,84422.0,0.00408]
[1744880679176,0.5494961,84423.0,84422.0,0.1225775]
[1744880681469,0.6259361,84423.0,84422.0,0.1225775]
[1744880681768,0.7193361,84423.0,84422.0,0.1225775]
[1744880684476,0.6428961,84423.0,84422.0,0.1225775]
[1744880685380,0.6428961,84423.0,84422.0,0.1532775]
[1744880688672,0.4919,84423.0,84422.0,0.1532775]
[1744880688966,0.4618,84423.0,84422.0,0.1532775]
[1744880690782,0.5802961,84423.0,84422.0,0.1532775]
[1744880690974,0.6110961,84423.0,84422.0,0.1532775]
[1744880692277,0.6110961,84423.0,84422.0,0.1443857]
[1744880695979,0.9718961,84423.0,84422.0,0.1443857]
[1744880698489,1.04805514,84423.0,84422.0,0.1443857]
[1744880702389,1.04805514,84423.0,84422.0,0.13549367]
[1744880704585,0.9718961,84423.0,84422.0,0.13549367]
[1744880706587,0.8534,84423.0,84422.0,0.13549367]
[1744880706793,0.7918,84423.0,84422.0,0.13549367]
[1744880709398,0.8225,84423.0,84422.0,0.13549367]
[1744880709998,0.9736961,84423.0,84422.0,0.13549367]
[1744880712291,0.8225,84423.0,84422.0,0.13549367]
[1744880712492,0.7918,84423.0,84422.0,0.14549367]
[1744880714389,0.5118,84423.0,84422.0,0.14549367]
[1744880714793,0.5218,84423.0,84422.0,0.14549367]
[1744880716403,0.5118,84423.0,84422.0,0.14549367]
[1744880718798,0.0313,84437.0,84436.0,0.1184779]
[1744880718999,0.35,84437.0,84436.0,0.1284779]
[1744880719901,0.351,84437.0,84436.0,0.1926779]
[1744880720102,0.351,84437.0,84436.0,0.20448896]
[1744880720302,0.354,84437.0,84436.0,0.20548896]
[1744880721894,0.353,84437.0,84436.0,0.20648896]
[1744880722100,0.35,84437.0,84436.0,0.20548896]
[1744880722301,0.35,84437.0,84436.0,0.20748896]
[1744880722611,0.35,84437.0,84436.0,0.20648896]
[1744880722806,0.351,84437.0,84436.0,0.20948896]
[1744880723410,0.351,84437.0,84436.0,0.20748896]
[1744880723605,0.351,84437.0,84436.0,0.20948896]
[1744880724008,0.091,84437.0,84436.0,0.20948896]
[1744880731817,0.14,84454.0,84453.0,0.118454]
[1744880732017,0.25,84454.0,84453.0,0.128454]
[1744880732512,0.2808,84454.0,84453.0,0.128454]
[1744880732916,0.2838,84454.0,84453.0,0.129454]
[1744880733110,0.3158,84454.0,84453.0,0.129454]
[1744880734017,0.3168,84454.0,84453.0,0.129454]
[1744880734222,0.3168,84454.0,84453.0,0.129534]
[1744880738319,0.3168,84454.0,84453.0,0.119534]
[1744880740418,0.3168,84454.0,84453.0,0.119454]
[1744880740731,0.3168,84454.0,84453.0,0.119534]
[1744880742623,0.7960526,84454.0,84453.0,0.119534]
[1744880743417,0.7960526,84454.0,84453.0,0.119454]
[1744880743619,0.4352526,84454.0,84453.0,0.119534]
[1744880744115,0.7960526,84454.0,84453.0,0.119534]
[1744880744315,0.4352526,84454.0,84453.0,0.119534]
[1744880744515,0.7960526,84454.0,84453.0,0.119534]
[1744880745113,0.6976,84454.0,84445.0,0.00028564]
[1744880745312,0.4792638,84446.0,84445.0,0.02028564]
[1744880745521,0.9192638,84446.0,84445.0,0.00028564]
[1744880746225,0.9819638,84446.0,84445.0,0.11864284]
[1744880746420,0.9819638,84446.0,84445.0,0.11872284]
[1744880746625,0.9819638,84446.0,84433.0,0.236957]
[1744880746626,0.0592343,84443.0,84433.0,0.236957]
[1744880746818,0.1184849,84434.0,84433.0,0.1385884]
[1744880747017,0.5684849,84434.0,84433.0,0.1184804]
[1744880747724,0.6318849,84434.0,84433.0,0.1184804]
[1744880748021,0.6318849,84434.0,84433.0,0.1185604]
[1744880748422,0.6328849,84434.0,84433.0,0.1235604]
[1744880749222,0.5144,84434.0,84433.0,0.1235604]
[1744880749923,0.5144,84434.0,84433.0,0.1225604]
[1744880750225,0.6328807,84434.0,84433.0,0.1245604]
[1744880751229,0.5144,84434.0,84433.0,0.1245604]
[1744880752830,0.5144,84434.0,84433.0,0.1345604]
[1744880756829,0.451,84434.0,84433.0,0.4953604]
[1744880757019,0.0319,84445.0,84441.0,0.1184708]
[1744880757223,0.06017764,84442.0,84441.0,0.4992708]
[1744880757422,0.0303,84450.0,84449.0,0.1184596]
[1744880757629,0.2103,84450.0,84449.0,0.1284596]
[1744880758019,0.18,84450.0,84449.0,0.1913596]
[1744880758823,0.182,84450.0,84449.0,0.1913596]
[1744880760024,0.183,84450.0,84449.0,0.1913596]
[1744880763230,0.183,84450.0,84449.0,0.2216596]
[1744880764435,0.00017764,84458.0,84457.0,0.1184484]
[1744880764635,0.12017764,84458.0,84457.0,0.4892484]
[1744880764839,0.08017764,84458.0,84457.0,0.4892484]
[1744880766137,0.08617764,84458.0,84457.0,0.4902484]
[1744880772427,0.09617764,84458.0,84457.0,0.4903284]
[1744880775438,0.09617764,84458.0,84457.0,0.4902484]
[1744880775627,0.09617764,84458.0,84457.0,0.4903284]
[1744880776143,0.15767764,84458.0,84457.0,0.4903284]
[1744880776636,0.27612464,84458.0,84457.0,0.37188]
[1744880776839,0.27612464,84458.0,84457.0,0.1195284]
[1744880777026,0.27612464,84458.0,84457.0,0.1194484]
[1744880777231,0.27612464,84458.0,84457.0,0.1195284]
[1744880777437,0.27612464,84458.0,84457.0,0.1194484]
[1744880777637,0.27612464,84458.0,84457.0,0.1195284]
[1744880780931,0.63692464,84458.0,84457.0,0.1195284]
[1744880786839,0.27612464,84458.0,84457.0,0.1195284]
[1744880788345,0.15767764,84458.0,84457.0,0.1195284]
[1744880788537,0.12737764,84458.0,84457.0,0.1395284]
[1744880788742,0.08617764,84458.0,84457.0,0.1395284]
[1744880791750,0.0324,84470.0,84469.0,0.1184197]
[1744880791951,0.2,84470.0,84469.0,0.3708]
[1744880792251,0.2,84470.0,84469.0,0.4892197]
[1744880792451,0.2,84470.0,84469.0,0.5547197]
[1744880793049,0.00017764,84478.0,84477.0,0.1184085]
[1744880793254,0.10017764,84478.0,84477.0,0.4992085]
[1744880793846,0.10017764,84478.0,84477.0,0.5606085]
[1744880794646,0.10117764,84478.0,84477.0,0.5606085]
[1744880795049,0.10217764,84478.0,84477.0,0.57269077]
[1744880796350,0.05783739,84478.0,84477.0,0.57269077]
[1744880797250,0.16659171,84483.0,84482.0,0.1184015]
[1744880797450,0.24659171,84483.0,84482.0,0.6392015]
[1744880798048,0.24659171,84483.0,84482.0,0.6996015]
[1744880798556,0.08,84483.0,84482.0,0.6996015]
[1744880799147,0.08,84483.0,84482.0,0.7006015]
[1744880801255,0.08,84483.0,84482.0,1.1182015]
[1744880801457,0.08,84483.0,84482.0,1.1182815]
[1744880805164,0.08,84483.0,84482.0,1.1182015]
[1744880805353,0.08,84483.0,84482.0,1.0878015]
[1744880805651,0.09,84483.0,84482.0,1.0578815]
[1744880805852,0.09,84483.0,84482.0,1.0578015]
[1744880806061,0.09,84483.0,84482.0,0.6402015]
[1744880806250,0.09,84483.0,84482.0,0.6402815]
[1744880806950,0.09,84483.0,84482.0,0.6402015]
[1744880807150,0.09,84483.0,84482.0,0.6402815]
[1744880808161,0.09,84483.0,84482.0,0.6728815]
[1744880819660,0.2084001,84483.0,84482.0,0.6402815]
[1744880819969,0.09,84483.0,84482.0,0.4902015]
[1744880820164,0.09,84483.0,84482.0,0.4802815]
[1744880820664,0.1546,84483.0,84482.0,0.4802815]
[1744880822467,0.1184183,84470.0,84469.0,0.00017764]
[1744880822770,0.5084183,84470.0,84469.0,0.00017764]
[1744880823156,0.5699183,84470.0,84469.0,0.00017764]
[1744880823872,0.5699183,84470.0,84469.0,0.11859734]
[1744880824363,0.5699183,84470.0,84469.0,0.12067734]
[1744880824763,0.5699183,84470.0,84469.0,0.00025764]
[1744880824971,0.5699183,84470.0,84469.0,0.00225764]
[1744880825769,0.5699183,84470.0,84469.0,0.12159734]
[1744880825968,0.5699183,84470.0,84469.0,0.00317764]
[1744880826276,0.5699183,84470.0,84469.0,0.00325764]
[1744880826473,0.5699183,84470.0,84469.0,0.00225764]
[1744880826771,0.5699183,84470.0,84469.0,0.00325764]
[1744880827369,0.6463583,84470.0,84469.0,0.00325764]
[1744880828967,0.6463583,84470.0,84469.0,0.00317764]
[1744880829272,0.6463583,84470.0,84469.0,0.00325764]
[1744880831375,0.1184239,84466.0,84465.0,0.02]
[1744880831575,0.45,84466.0,84461.0,0.02]
[1744880831775,0.1184309,84461.0,84460.0,0.1184321]
[1744880831975,0.5684309,84461.0,84460.0,0.1184321]
[1744880832278,0.1184323,84460.0,84459.0,0.000108]
[1744880832476,0.6308323,84460.0,84459.0,0.1185417]
[1744880833867,0.6308323,84460.0,84459.0,0.1514417]
[1744880834369,0.6318323,84460.0,84459.0,0.1564417]
[1744880835372,0.6318323,84460.0,84459.0,0.1594417]
[1744880842488,0.5134,84460.0,84459.0,0.1594417]
[1744880842687,0.6003323,84460.0,84459.0,0.1594417]
[1744880843385,0.5694323,84460.0,84459.0,0.1594417]
[1744880843591,0.451,84460.0,84459.0,0.1594417]
[1744880843777,0.451,84460.0,84459.0,0.1694417]
[1744880846586,0.451,84460.0,84459.0,0.5302417]
[1744880846884,0.15666236,84460.0,84459.0,0.7802417]
[1744880847089,0.011,84460.0,84459.0,1.1978417]
[1744880849488,0.0926753,84476.0,84468.0,0.1184211]
[1744880849798,0.06017764,84469.0,84468.0,0.5092211]
[1744880850480,0.06017764,84469.0,84468.0,0.5719211]
[1744880850685,0.06017764,84469.0,84468.0,0.5729211]
[1744880850992,0.06017764,84469.0,84468.0,0.8249211]
[1744880851879,0.06117764,84469.0,84468.0,0.8279211]
[1744880852683,0.06117764,84469.0,84468.0,0.5779211]
[1744880857882,0.00117764,84469.0,84468.0,0.5779211]
[1744880858893,0.00117764,84469.0,84468.0,0.9955211]
[1744880859195,4e-08,84469.0,84468.0,0.9955211]
[1744880860499,4e-08,84477.0,84476.0,0.1184099]
[1744880860804,4e-08,84477.0,84476.0,1.0068099]
[1744880861494,4e-08,84477.0,84476.0,1.0684099]
[1744880861697,4e-08,84477.0,84476.0,1.0704099]
[1744880862592,4e-08,84477.0,84476.0,1.0714099]
[1744880865994,4e-08,84477.0,84476.0,2.5714099]
[1744880866397,0.00017764,84485.0,84484.0,0.1183987]
[1744880866698,0.11117764,84485.0,84484.0,0.5191987]
[1744880867499,0.11117764,84485.0,84484.0,0.59204243]
[1744880868593,0.11217764,84485.0,84484.0,0.59204243]
[1744880868800,0.11317764,84485.0,84484.0,0.59204243]
[1744880871603,0.11317764,84485.0,84484.0,0.56154243]
[1744880872901,0.11317764,84485.0,84484.0,0.20074243]
[1744880873101,0.11317764,84485.0,84484.0,0.92234243]
[1744880875001,0.11317764,84485.0,84484.0,0.20074243]
[1744880875202,0.11317764,84485.0,84484.0,0.92234243]
[1744880876200,0.11317764,84485.0,84484.0,0.20074243]
[1744880876404,0.11317764,84485.0,84484.0,0.92234243]
[1744880879517,0.11317764,84485.0,84484.0,0.89184243]
[1744880879810,0.14407764,84485.0,84484.0,0.89184243]
[1744880880106,0.14407764,84485.0,84484.0,0.89192243]
[1744880880502,0.14407764,84485.0,84484.0,0.89184243]
[1744880880704,0.14407764,84485.0,84484.0,0.89192243]
[1744880882897,0.14407764,84485.0,84484.0,0.89184243]
[1744880883098,0.14407764,84485.0,84484.0,0.89192243]
[1744880884915,0.14407764,84485.0,84484.0,0.17032243]
[1744880885212,0.14407764,84485.0,84484.0,0.89192243]
[1744880885403,0.14407764,84485.0,84484.0,0.92252243]
[1744880886105,0.14407764,84485.0,84484.0,0.89192243]
[1744880894609,0.11317764,84485.0,84484.0,0.89192243]
[1744880895220,4e-08,84485.0,84484.0,0.89192243]
[1744880895613,0.0316,84500.0,84499.0,0.1183777]
[1744880895812,0.1816,84500.0,84499.0,0.8699777]
[1744880897222,0.1826,84500.0,84499.0,0.8699777]
[1744880897426,0.1836,84500.0,84499.0,0.8699777]
[1744880898421,0.2164,84500.0,84499.0,0.8699777]
[1744880899829,0.2164,84500.0,84499.0,0.9013777]
[1744880900429,0.2164,84500.0,84499.0,0.8699777]
[1744880901232,0.1376426,84500.0,84499.0,0.8699777]
[1744880901526,0.0303,84507.0,84506.0,0.1183679]
[1744880901725,0.1903,84507.0,84506.0,0.5191679]
[1744880902819,0.1923,84507.0,84506.0,0.5191679]
[1744880903020,0.1943,84507.0,84506.0,0.5191679]
[1744880904430,0.2273,84507.0,84506.0,0.5191679]
[1744880904630,0.2579,84507.0,84506.0,0.5191679]
[1744880906130,0.2579,84507.0,84506.0,0.5520679]
[1744880907229,0.197,84507.0,84506.0,0.5520679]
[1744880907525,0.00011532,84508.0,84507.0,0.1183665]
[1744880907727,0.08000002,84508.0,84507.0,0.3313665]
[1744880908120,2e-08,84508.0,84507.0,0.3313665]
[1744880909123,2e-08,84508.0,84507.0,0.3303665]
[1744880909524,0.00200002,84508.0,84507.0,0.3303665]
[1744880910027,2e-08,84508.0,84507.0,0.3303665]
[1744880911434,2e-08,84508.0,84507.0,0.7479665]
[1744880914031,2e-08,84508.0,84507.0,1.4695665]
[1744880914331,2e-08,84508.0,84507.0,0.7479665]
[1744880914532,2e-08,84508.0,84507.0,1.4695665]
[1744880921439,2e-08,84508.0,84507.0,1.4394665]
[1744880922032,2e-08,84508.0,84507.0,1.4395465]
[1744880922228,2e-08,84508.0,84507.0,0.6282465]
[1744880922539,0.02000002,84508.0,84507.0,0.4881665]
[1744880922739,0.02000002,84508.0,84507.0,0.4882465]
[1744880922941,0.02000002,84508.0,84507.0,0.4881665]
[1744880923637,0.02000002,84508.0,84507.0,0.4882465]
[1744880924339,0.74916512,84508.0,84507.0,8e-05]
[1744880924545,0.1183707,84504.0,84503.0,0.1383721]
[1744880924731,0.4683707,84504.0,84503.0,0.1183721]
[1744880924936,0.6,84504.0,84503.0,0.1183721]
[1744880925138,0.7183707,84504.0,84503.0,0.1184521]
[1744880925335,0.7833707,84504.0,84503.0,0.1184521]
[1744880926239,0.5333707,84504.0,84503.0,0.1204521]
[1744880930941,0.415,84504.0,84503.0,0.1204521]
[1744880931544,0.415,84504.0,84503.0,0.1304521]
[1744880932952,0.415,84504.0,84503.0,1.6304521]
[1744880934054,0.35,84504.0,84503.0,1.6304521]
[1744880934855,0.17,84504.0,84503.0,1.6304521]
[1744880950768,0.17,84504.0,84503.0,0.1304521]
[1744880954980,0.17,84504.0,84503.0,0.4912521]
[1744880955679,0.17,84504.0,84503.0,0.5563521]
[1744880956382,0.17,84504.0,84503.0,0.5562721]
[1744880959983,0.17,84504.0,84503.0,0.5232721]
[1744880967982,0.17,84504.0,84503.0,0.1624721]
[1744880968288,0.17,84504.0,84503.0,0.5232721]
[1744880969578,0.17,84504.0,84503.0,0.1624721]
[1744880970095,0.17,84504.0,84503.0,0.5232721]
[1744880971682,0.17,84504.0,84503.0,0.1624721]
[1744880971893,0.17,84504.0,84503.0,0.5232721]
[1744880973493,0.18,84504.0,84503.0,0.5232721]
[1744880973789,0.18,84504.0,84503.0,0.1624721]
[1744880973981,0.18,84504.0,84503.0,0.5232721]
[1744880976392,0.18,84504.0,84503.0,0.1624721]
[1744880976591,0.18,84504.0,84503.0,0.5232721]
[1744880977286,0.18,84504.0,84503.0,0.5534721]
[1744880978493,0.18,84504.0,84503.0,0.1926721]
[1744880978685,0.18,84504.0,84503.0,0.5534721]
[1744880978882,0.18,84504.0,84503.0,0.5232721]
[1744880979686,0.18,84504.0,84503.0,0.5549721]
[1744880980391,0.17,84504.0,84503.0,0.5549721]
[1744880980793,0.17,84504.0,84503.0,0.1941721]
[1744880981093,0.17,84504.0,84503.0,0.5549721]
[1744880981795,0.17,84504.0,84503.0,0.1941721]
[1744880982097,0.17,84504.0,84503.0,0.5549721]
[1744880984797,0.17,84504.0,84503.0,0.1941721]
[1744880984997,0.17,84504.0,84503.0,0.5873721]
[1744880986398,0.18,84504.0,84503.0,0.5873721]
[1744880986793,0.18,84504.0,84503.0,0.2265721]
[1744880986999,0.18,84504.0,84503.0,0.5873721]
[1744880988401,0.17,84504.0,84503.0,0.5873721]
[1744880989101,0.17,84504.0,84503.0,0.2265721]
[1744880989300,0.17,84504.0,84503.0,0.5873721]
[1744880990998,0.17,84504.0,84503.0,0.2265721]
[1744880991301,0.17,84504.0,84503.0,0.5873721]
[1744880992302,0.18,84504.0,84503.0,0.5873721]
[1744880992802,0.17,84504.0,84503.0,0.5873721]
[1744880993802,0.17,84504.0,84503.0,0.2265721]
[1744880994003,0.17,84504.0,84503.0,0.6073721]
[1744880996604,0.18,84504.0,84503.0,0.6073721]
[1744880997303,0.18,84504.0,84503.0,0.2465721]
[1744880997503,0.18,84504.0,84503.0,0.6073721]
[1744880997900,0.17,84504.0,84503.0,0.6073721]
[1744880998105,0.17,84504.0,84503.0,0.5873721]
[1744880999108,0.1258864,84504.0,84503.0,0.5873721]
[1744880999308,0.0298577,84504.0,84503.0,0.5873721]
[1744881001098,0.0298577,84504.0,84503.0,0.6618921]
[1744881004712,0.0298577,84504.0,84503.0,1.0226921]
[1744881005411,0.0298577,84504.0,84503.0,2.5226921]
[1744881008813,1e-07,84504.0,84503.0,2.5226921]
[1744881009708,0.005,84514.0,84513.0,0.1183581]
[1744881009908,0.095,84514.0,84513.0,0.6491581]
[1744881010111,0.095,84514.0,84513.0,0.7108581]
[1744881010820,0.096,84514.0,84513.0,0.7108581]
[1744881011318,0.0600001,84514.0,84513.0,0.7108581]
[1744881011710,0.0610001,84514.0,84513.0,0.7108581]
[1744881012307,0.0600001,84514.0,84513.0,0.7148581]
[1744881012503,0.06,84514.0,84513.0,0.7148581]
[1744881012717,0.06,84514.0,84513.0,0.7168581]
[1744881013914,0.06,84514.0,84513.0,0.7148581]
[1744881014108,0.06,84514.0,84513.0,0.7168581]
[1744881014309,0.06,84514.0,84513.0,1.1344581]
[1744881017614,0.06,84514.0,84513.0,1.1036581]
[1744881018020,0.06,84514.0,84513.0,1.1776181]
[1744881018615,0.06,84514.0,84513.0,1.1776981]
[1744881021425,0.06,84514.0,84513.0,1.5384981]
[1744881024124,0.06,84514.0,84513.0,0.8168981]
[1744881024323,0.06,84514.0,84513.0,1.5384981]
[1744881024714,0.06,84514.0,84513.0,0.8168981]
[1744881025126,0.06,84514.0,84513.0,1.5384981]
[1744881026221,0.06,84514.0,84513.0,0.8168981]
[1744881026414,0.06,84514.0,84513.0,1.5384981]
[1744881027523,0.06,84514.0,84513.0,0.8168981]
[1744881027826,0.06,84514.0,84513.0,1.5384981]
[1744881028213,0.08,84514.0,84513.0,1.1037381]
[1744881028412,0.6283567,84514.0,84513.0,0.4236]
[1744881028619,0.52202103,84514.0,84506.0,0.000108]
[1744881028819,0.52202103,84514.0,84500.0,0.3609458]
[1744881028820,0.1183749,84502.0,84501.0,0.1183738]
[1744881029122,0.3283749,84502.0,84501.0,0.1184538]
[1744881029710,0.21,84502.0,84501.0,0.1184538]
[1744881030123,0.3283735,84502.0,84501.0,0.1184538]
[1744881030323,0.211,84502.0,84501.0,0.1244538]
[1744881031425,0.211,84502.0,84501.0,0.1274538]
[1744881031909,0.211,84502.0,84501.0,0.1273738]
[1744881032114,0.2748,84502.0,84501.0,0.1274538]
[1744881032913,0.2748,84502.0,84501.0,0.1273738]
[1744881033115,0.3931735,84502.0,84501.0,0.1273738]
[1744881033314,0.3931735,84502.0,84501.0,0.1274538]
[1744881035525,0.1775784,84494.0,84492.0,0.3608]
[1744881035727,0.5275784,84494.0,84493.0,0.1775746]
[1744881036624,0.5275784,84494.0,84493.0,0.1776546]
[1744881036822,0.5285784,84494.0,84493.0,0.1846546]
[1744881037925,0.5285784,84494.0,84493.0,0.1886546]
[1744881038725,0.351,84494.0,84493.0,0.1886546]
[1744881039231,0.191,84494.0,84493.0,0.1886546]
[1744881039420,0.191,84494.0,84493.0,0.1986546]
[1744881044234,0.181,84494.0,84493.0,0.1986546]
[1744881048029,0.191,84494.0,84493.0,0.1986546]
[1744881049731,0.191,84494.0,84493.0,0.5594546]
[1744881054527,0.191,84494.0,84493.0,0.1885746]
[1744881054727,0.191,84494.0,84493.0,0.1886546]
[1744881054927,0.191,84494.0,84493.0,0.1885746]
[1744881055131,0.191,84494.0,84493.0,0.1886546]
[1744881055737,0.3728847,84494.0,84493.0,0.1886546]
[1744881056935,0.2545,84494.0,84493.0,0.1886546]
[1744881057443,0.2545,84494.0,84493.0,0.1885746]